Cogmind - Beta 12 @@@ ROGUE MODE // 2023.10.07 @ 00:09:10 Player: Pitt Result: Destroyed by G-47 Trooper with Particle Gun Performance ------------- Evolutions (1) 500 Regions Visited (3) 600 Robots Destroyed (8) 40 Value Destroyed (224) 224 Prototype IDs (0) 0 Alien Tech Used (0) 0 Bonus (0) 0 TOTAL SCORE: 1364 Bonus ------- None Cogmind --------- Core Integrity 0/400 Matter 300/300 Energy 100/100 System Corruption 0% Temperature Cool (9) Movement Core (350) Ox6 Location -9/Materials Parts ------- > --- POWER (1) -------- (None) > --- PROPULSION (3) --- (None) > --- UTILITY (2) ------ Large Storage Unit > --- WEAPON (3) ------- (None) > --- INVENTORY (15) --- Small Storage Unit Peak State ------------ > --- POWER ------------ Light Ion Engine > --- PROPULSION ------- Light Treads Light Treads > --- UTILITY ---------- Small Storage Unit Medium Matter Pod > --- WEAPON ----------- Medium Laser Assault Rifle Light Assault Rifle > --- INVENTORY -------- (None) [Rating: 8] Favorites ----------- Power Light Ion Engine Engine Light Ion Engine Propulsion Light Treads Treads Light Treads Leg Aluminum Leg Utility Medium Matter Pod Storage Medium Matter Pod Weapon Medium Laser Energy Gun Medium Laser Ballistic Gun Assault Rifle Build | -11 -10 -10 -9 ------- Run | Jun Mat Min Mat Slots Evolved 2 | . . . 2 Power . | . . . . Propulsion 1 | . . . 1 Utility . | . . . . Weapon 1 | . . . 1 Parts Attached 23 | 8 11 . 4 Power 2 | 1 1 . . Engine 2 | 1 1 . . Core . | . . . . Reactor . | . . . . Propulsion 8 | 2 5 . 1 Treads 7 | 2 5 . . Leg 1 | . . . 1 Wheel . | . . . . Hover . | . . . . Flight . | . . . . Utility 3 | 2 . . 1 Device . | . . . . Storage 3 | 2 . . 1 Processor . | . . . . Hackware . | . . . . Protection . | . . . . Artifact . | . . . . Weapon 10 | 3 5 . 2 Energy Gun 4 | 1 2 . 1 Energy Cannon . | . . . . Ballistic Gun 6 | 2 3 . 1 Ballistic Cannon . | . . . . Launcher . | . . . . Special Weapon . | . . . . Impact Weapon . | . . . . Slashing Weapon . | . . . . Piercing Weapon . | . . . . Special Melee Weapon . | . . . . Unidentified Prototypes . | . . . . Parts Lost 9 | . . . 9 Power 1 | . . . 1 Propulsion 3 | . . . 3 Utility 1 | . . . 1 Weapon 4 | . . . 4 Highest Loss Streak 9 | . . . 9 To Critical Strikes . | . . . . Average Slot Usage (%) 80 | . 95 100 55 Engine 9 | . 12 14 4 Treads 20 | . 26 28 11 Storage 24 | . 28 28 19 Energy Gun 11 | . 14 14 7 Ballistic Gun 12 | . 12 14 11 Naked Turns . | . . . . Heaviest Build 30 | 14 14 14 30 Greatest Support 40 | 40 40 40 40 Greatest Overweight (x) 7 | . 3 . 7 Average Overweight (x) . | . . . 1 Largest Inventory Capacity 15 | 8 8 8 15 Average Capacity 8 | 6 8 8 13 Most Carried 1 | 1 1 1 1 Average Carried . | . 1 1 . Final Capacity 15 | 8 8 8 15 Final Carried 1 | 1 1 1 1 Class Distribution -------------------- 94% | Mutant 5% | Gunner Dominant Class ---------------- Mutant | -10/Materials Mutant | -10/Mines Mutant | -9/Materials Resources | -11 -10 -10 -9 ----------- Run | Jun Mat Min Mat Matter Collected 480 | 330 76 . 74 Remotely . | . . . . Salvage Created 298 | 73 76 . 149 Parts 16 | 4 5 . 7 Haulers Intercepted . | . . . . Recyclers Shooed . | . . . . Parts Field Recycled . | . . . . Retrieved Matter . | . . . . Parts Self-Destructed . | . . . . Prevented . | . . . . Kills | -11 -10 -10 -9 ------- Run | Jun Mat Min Mat Combat Hostiles Destroyed 6 | . 2 . 4 Guns 6 | . 2 . 4 Classes Destroyed 3 | 2 1 . . Worker 1 | 1 . . . Recycler 1 | 1 . . . Grunt 6 | . 2 . 4 Best Kill Streak 2 | 1 1 . 2 Combat Bots Only 2 | . 1 . 2 Max Kills in Single Turn 1 | 1 1 . 1 Gunslinging . | . . . . Exploded . | . . . . Melee . | . . . . Uniques/NPCs Destroyed . | . . . . Combat | -11 -10 -10 -9 -------- Run | Jun Mat Min Mat Damage Taken 1029 | . 34 . 995 Core 402 | . . . 402 Absorbed by Shields . | . . . . Core Remaining (%) 100 | 100 . 100 . Volleys Fired 36 | 6 9 . 21 Largest 3 | 2 2 . 3 Hottest 90 | 70 70 . 90 Shots Fired 68 | 12 18 . 38 Gun 68 | 12 18 . 38 Cannon . | . . . . Launcher . | . . . . Special . | . . . . Kinetic 37 | 6 9 . 22 Thermal 31 | 6 9 . 16 Explosive . | . . . . Electromagnetic . | . . . . Robot Hit Streak 11 | 2 4 . 11 Robot Miss Streak 4 | 3 4 . 3 Penetration Max . | . . . . Secondary Targets 1 | . . . 1 Max Gunslinging Chain 1 | . . . 1 Shots Hit Robots 39 | 6 8 . 25 Core Hits 16 | 3 4 . 9 Critical Kills . | . . . . Critical Parts Destroyed . | . . . . Critical Strikes 2 | . 2 . . Burn 2 | . 2 . . Melee Attacks . | . . . . Impact . | . . . . Slashing . | . . . . Piercing . | . . . . Sneak Attacks . | . . . . Combat Hostiles . | . . . . Follow-up Attacks . | . . . . Damage Inflicted 459 | 75 113 . 271 Guns 459 | 75 113 . 271 Cannons . | . . . . Explosions . | . . . . Melee . | . . . . Ramming . | . . . . Kinetic 201 | 37 39 . 125 Thermal 258 | 38 74 . 146 Explosive . | . . . . Electromagnetic . | . . . . Impact . | . . . . Slashing . | . . . . Piercing . | . . . . Highest Corruption . | . . . . Average Corruption . | . . . . Corruption Purged . | . . . . Corruption Blocked . | . . . . Overload Shots . | . . . . Overflow Damage . | . . . . Projectiles . | . . . . Explosions . | . . . . Melee . | . . . . Knockbacks . | . . . . Impact . | . . . . Kinetic . | . . . . Secondary . | . . . . Self-Inflicted Damage . | . . . . Shots . | . . . . Rammed . | . . . . Targets Rammed . | . . . . Kicked . | . . . . Crushed . | . . . . Highest Temperature 111 | 36 33 . 111 Average Temperature 37 | 19 16 . 52 Received Heat Transfer 666 | . 18 . 648 Siege Activations . | . . . . Robots Corrupted . | . . . . Combat Hostiles . | . . . . Parts Fried . | . . . . Impact Corruptions . | . . . . Robots Melted . | . . . . Combat Hostiles . | . . . . Parts Melted . | . . . . Heat Transferred 913 | 111 370 . 432 Parts Sabotaged . | . . . . Parts Stolen . | . . . . Parts Stripped . | . . . . Power Chain Reactions . | . . . . Missiles Intercepted . | . . . . Alert | -11 -10 -10 -9 ------- Run | Jun Mat Min Mat Peak Influence 86 | 10 86 33 52 Initial 33 | . 6 33 12 Average 18 | 2 29 33 16 Maximum Alert Level . | . . . . Low Security (%) 100 | 100 100 100 100 Level 1 . | . . . . Level 2 . | . . . . Level 3 . | . . . . Level 4 . | . . . . Level 5 . | . . . . High Security . | . . . . Max Security . | . . . . Squads Dispatched 1 | . 1 . . Investigation . | . . . . Extermination . | . . . . Reinforcement 1 | . 1 . . Assault . | . . . . Garrison . | . . . . Intercept . | . . . . Searches Triggered . | . . . . Construction Impeded . | . . . . Haulers Reinforced . | . . . . Active Scanning Responses . | . . . . Cargo Convoy Interrupts . | . . . . Stealth | -11 -10 -10 -9 --------- Run | Jun Mat Min Mat Distress Signals . | . . . . Communications Jammed . | . . . . Distress Signals . | . . . . Times Spotted 11 | . 5 . 6 Peak Tracking Total 4 | . 3 . 4 Tactical Retreats 1 | . 1 . . Traps | -11 -10 -10 -9 ------- Run | Jun Mat Min Mat Traps Triggered 6 | . 6 . . Indirectly . | . . . . Trap Hack Attempts . | . . . . Triggered . | . . . . Disarmed . | . . . . Reprogrammed . | . . . . Reused . | . . . . Traps Extracted . | . . . . Installed . | . . . . Triggered . | . . . . Machines | -11 -10 -10 -9 ---------- Run | Jun Mat Min Mat Machines Disabled . | . . . . Max in Single Turn . | . . . . Machines Repaired . | . . . . Machines Sabotaged . | . . . . Overloaded Fab Kills . | . . . . Hacking | -11 -10 -10 -9 --------- Run | Jun Mat Min Mat Machines Accessed 1 | . 1 . . Terminals . | . . . . Fabricators . | . . . . Repair Stations . | . . . . Recycling Units 1 | . 1 . . Scanalyzers . | . . . . Garrison Access . | . . . . Total Hacks 1 | . 1 . . Successful . | . . . . Failed 1 | . 1 . . Catastrophic . | . . . . Database Lockouts . | . . . . Manual 1 | . 1 . . Terminals . | . . . . Fabricators . | . . . . Repair Stations . | . . . . Recycling Units 1 | . 1 . . Scanalyzers . | . . . . Garrison Access . | . . . . Terminal Hacks . | . . . . Fabricator Hacks . | . . . . Repair Station Hacks . | . . . . Recycling Unit Hacks . | . . . . Scanalyzer . | . . . . Garrison Access Hacks . | . . . . Unauthorized Hacks . | . . . . Terminals . | . . . . Fabricators . | . . . . Repair Stations . | . . . . Recycling Units . | . . . . Scanalyzers . | . . . . Garrison Access . | . . . . Data Cores Recovered . | . . . . Used . | . . . . Hacking Detections 1 | . 1 . . Full Trace Events . | . . . . Feedback Events . | . . . . Feedback Blocked . | . . . . Robot Schematics Acquired . | . . . . Robots Built . | . . . . Authchips . | . . . . Time . | . . . . Total Robot Build Rating . | . . . . Part Schematics Acquired . | . . . . Parts Built . | . . . . Authchips . | . . . . Time . | . . . . Total Part Build Rating . | . . . . Parts Repaired . | . . . . Time . | . . . . Parts Recycled . | . . . . Recycled Matter . | . . . . Retrieved Matter . | . . . . Retrieved Components . | . . . . Parts Scanalyzed . | . . . . Part Schematics Acquired . | . . . . Parts Damaged . | . . . . Bothacking | -11 -10 -10 -9 ------------ Run | Jun Mat Min Mat Used RIF Installer . | . . . . Robots Hacked . | . . . . Non-combat . | . . . . Combat . | . . . . Robot Hacks Applied . | . . . . Relay Couplers Released . | . . . . Fabnet Peak Effective % . | . . . . Robots Rewired . | . . . . Allies Hacked . | . . . . Hacks Repelled . | . . . . Allies | -11 -10 -10 -9 -------- Run | Jun Mat Min Mat Total Allies . | . . . . Largest Group . | . . . . Highest-Rated Group . | . . . . Highest-Rated Ally . | . . . . Total Orders . | . . . . Ally Attacks . | . . . . Total Damage . | . . . . Kills . | . . . . Allies Corrupted . | . . . . Allies Melted . | . . . . Intel | -11 -10 -10 -9 ------- Run | Jun Mat Min Mat Robot Analysis Total . | . . . . Derelict Logs Recovered . | . . . . Drone Launches . | . . . . Drone Recoveries . | . . . . Exploration | -11 -10 -10 -9 ------------- Run | Jun Mat Min Mat Turns Passed 534 | 156 212 21 145 Spaces Moved 241 | 81 106 14 40 Core 12 | 3 1 . 8 Treads 225 | 78 105 14 28 Legs 4 | . . . 4 Wheels . | . . . . Hover . | . . . . Flight . | . . . . Fastest Speed 50 | 50 160 160 160 Average Speed 166 | 155 160 160 206 Slowest Speed 400 | 160 200 160 400 Overloaded Moves . | . . . . Propulsion Burnouts . | . . . . Robots Hopped . | . . . . Cave-ins Triggered . | . . . . Exploration Rate (%) 9 | 5 18 9 7 Regions Visited 3 Branch Regions 1 Pre-discovered Areas . | . . . . Known Exits Taken . | . . . . Unknown Exits Taken 3 | 1 1 1 . Scrap Searched . | . . . . Spaces Dug . | . . . . Terrain Destroyed . | . . . . Melee . | . . . . Projectile . | . . . . AOE . | . . . . Terrain Rammed . | . . . . Walls Destroyed . | . . . . Machines Disabled . | . . . . Actions | -11 -10 -10 -9 --------- Run | Jun Mat Min Mat Total 301 | 95 125 13 68 Wait 3 | . . . 3 Move 238 | 80 105 13 40 Hop . | . . . . Pick Up 1 | 1 . . . Fast Attach 20 | 7 11 . 2 Attach 1 | . . . 1 Detach . | . . . . Swap 2 | 1 . . 1 Drop . | . . . . Fire 36 | 6 9 . 21 Melee . | . . . . Ram . | . . . . Kick . | . . . . Crush . | . . . . Escape Stasis . | . . . . Rewire . | . . . . Trap . | . . . . Miscellaneous . | . . . . Route ------- -11/Junkyard -10/Materials -10/Mines -9/Materials History --------- Turn | Location | Event 35 | -11/Junkyard | Discovered new exit (range 16) 157 | -11/Junkyard | Entered Materials 307 | -10/Materials | Build established: Mutant 326 | -10/Materials | Discovered new exit (range 3) 369 | -10/Materials | Entered Mines 376 | -10/Mines | Discovered new exit (range 10) 390 | -10/Mines | Entered Materials 390 | -9/Materials | Evolved 2 slots: Propulsion x1, Weapon x1 501 | -9/Materials | Core integrity fell below 50% 524 | -9/Materials | Core integrity fell below 20% 535 | -9/Materials | Destroyed by G-47 Trooper with Particle Gun Last Messages --------------- 00465_ Acquired 31 matter. 00465_ R-06 Scavenger collects Ion Engine. 00468_ R-06 Scavenger collects Sml. Laser. 00469_ Critical hit (Burn: +37). 00471_ Lgt. Treads destroyed. 00475_ Med. Laser destroyed. 00476_ G-34 Mercenary destroyed. 00481_ Critical hit (Burn: +37). 00485_ Acquired 43 matter. 00493_ Acquired Sml. Laser. 00493_ Critical hit (Burn: +37). 00500_ G-47 Trooper destroyed. 00504_ Lgt. Assault Rifle destroyed. 00507_ Acquired Aluminum Leg. 00507_ Med. Matter Pod destroyed. 00509_ Sml. Laser destroyed. 00513_ Critical hit (Burn: +37). 00517_ Aluminum Leg destroyed. 00517_ R-06 Scavenger collects Heat Sink. 00518_ K-01 Serf collects debris. Map ----- +----------------------------------------------------+ | ?????????????????????????????????? | | ?????????????????????????????????? | | ?????????????????????????????????? | | ?????????????????????????????????? | | ?????????????????????????????????? | | ?????????????????????????????????? | | ?????????????????????????????????? | | ?????????????????????????????????? | | ?????????????????????????????????? | | ?????????????????????????????????? | | ???????????? ??????????????????? | | ???????????? #?????????????????? | | ???????????? #?????????????????? | | ???????????? #?????????????????? | | ???????????? #?????????????????? | | ???????????? #?????????????????? | | ???????????? #?????????????????? | | ???????????# +???????#?????????? | | ????######## #?????" #?????????? | | ??? # #????" ??????????? | | ??# """"" # #??? ???????????? | | ??# """"" # #?? ????????????? | | ??# """"" # ###+####### ??????? | | ??# # ?????? | | ??# g ?????? | | ??# ]@ # ?????? | | ??# [ # #########?????????? | | ??# "T" # #?????????????????? | | ??########## #?????????????????? | | ???????????# #?????????????????? | | ????????#### #?????????????????? | | ???????##! % #?????????????????? | | ???????#! % #?????????????????? | | ???????#! = #?????????????????? | | ???????# #?????????????????? | | ???????#! #?????????????????? | | ???????##! #?????????????????? | | ????????#### #?????????????????? | | ???????????# #?????????????????? | | ???????????# #?????????????????? | | ???????????# #?????????????????? | | ???????????# #?????????????????? | | ???????????# #?????????????????? | | ???????????# #?????????????????? | | ???????????# #?????????????????? | | ???????????# ###???????????????? | | ???????????# # #???????????????? | | ???????????# #???????????????? | | ???????????# # #???????????????? | | ???????????# ###???????????????? | +----------------------------------------------------+ Best States ------------- Heat Dissipation 28 Energy Generation 10 Energy Capacity 125 Matter Stores 332 Matter Capacity 400 Sight Range 16 Terrain Scan Density 10 Evasion (%) 40 Recoil Reduction 2 Item Schematics ----------------- None Robot Schematics ------------------ None Fabricated ------------ Nothing Alien Tech Used ----------------- None Achievements -------------- None Challenges ------------ None Game ------ Seed PhysicsLauncherDevice Manual? 0 Play Time 00:05:46 Cumulative 164.7 hours Start 2023.10.06 @ 21:52:18 End 2023.10.07 @ 00:09:10 Sessions 2 Manual Loads 0 Difficulty Rogue Special Mode None Game No. 254 Rogue 254 Adventurer 0 Explorer 0 Win Type - Total 0 Types 0/0/0/0/0/0/0/0/0 Lore% 51 Gallery% 58 Achievement% 40 Wizard Run 0 Options --------- ASCII 0 Keyboard 0 Movement Mouse Keybinds 0 Fullscreen 1 Font 12/Smallcaps Map View 83x54 Tactical HUD 1 Map Filters NONE Filters NONE Steam 1 RUN: 76ff7d3c-ef1f-4b06-8ab8-e4c5d51c5ca3